[Event "1000IM Saint Louis 2022"]
[Site "Saint Louis"]
[Date "2022.07.19"]
[Round "1.1"]
[White "Tokhirjonova, Gulrukhbegim"]
[Black "Cervantes Landeiro, Thalia"]
[Result "1-0"]
[ECO "D20"]
[WhiteElo "2329"]
[BlackElo "2234"]
[Annotator "TA"]
[PlyCount "89"]
[EventDate "2022.07.20"]
[EventType "tourn"]
[EventCountry "USA"]
[SourceTitle "playchess.com"]
[Source "ChessBase"]
[SourceQuality "1"]
[TimeControl "5400+30"]

{[%evp 9,89,33,25,72,64,79,63,77,73,64,77,0,0,0,0,0,0,0,89,98,96,81,93,87,80,84,181,66,63,0,0,0,0,0,0,-5,-8,-14,-8,-10,0,0,7,0,21,0,4,0,0,0,8,14,25,0,0,0,0,-93,0,-99,608,583,532,475,941,856,29984,29985,29985,29986,29985,29986,29986,29985,29988,29989,29989,29990,29992,29993,29993,29992]} 1. d4 {[%emt 0:00:36]} d5 {[%emt 0:00:28]} 2. c4 {[%emt 0:00:39]} dxc4 {[%emt 0:00:08]} 3. e4 {[%emt 0:01:54]} b5 {[%emt 0:00:24]} 4. a4 {[%emt 0:02:10]} c6 {[%emt 0:00:30]} 5. axb5 {[%emt 0:01:08]} cxb5 {[%emt 0:00:08]} 6. Nc3 {[%emt 0:01:06] D20: Queen's Gambit Accepted: 3 e3 and 3 e4.} Qb6 {[%emt 0:00:34] outshines the older 6...a6.} 7. Nd5 {[%emt 0:02:01]} Qb7 {[%emt 0:00:10]} 8. Bf4 {[%emt 0:01:15] White is slightly better.} e5 {[%emt 0:00:25]} 9. Bxe5 {[%emt 0:00:57]} Nd7 $1 {[%emt 0:00:27]} 10. Ne2 {[%emt 0:04:37] 0x0.001ebd5f86f7dp-1022s more active pieces.} (10. Bf4 $1 $16) 10... Nxe5 $11 {[%emt 0:04:54]} 11. dxe5 {[%emt 0:00:21] [#]} Be6 $146 {[%emt 0:01:40]} ({Predecessor:} 11... Ne7 12. Nec3 a6 13. Nxb5 Nxd5 14. Qxd5 Bb4+ 15. Nc3 Bxc3+ 16. bxc3 Qb2 17. Qa5 Be6 {1-0 (30) Wang,H (2744)-So,W (2776) Stavanger 2022}) 12. Nec3 {[%emt 0:01:46][%cal Oc3b5] Pair of Knights!} Rd8 $1 {[%emt 0:11:20]} 13. Qd4 {[%emt 0:04:24] Against Bc5} Rd7 {[%emt 0:03:26]} (13... Bb4 $1 $11) 14. Be2 $16 {[%emt 0:06:59]} Ne7 {[%emt 0:05:07] [#] Strongly threatening ...b4.} 15. O-O $1 {[%emt 0:02:55]} b4 {[%emt 0:23:57] [#]} (15... Bxd5 $2 16. exd5 Nf5 17. Qe4 $18) 16. Rfb1 $1 {[%emt 0:24:32][%cal Oe2c4]} bxc3 {[%emt 0:10:13]} 17. bxc3 {[%emt 0:01:12]} Qc8 {[%emt 0:01:38]} (17... Bxd5 $2 18. Rxb7 Bxb7 19. Qxc4 $18) (17... Qa8 $16) 18. Bxc4 {[%emt 0:08:42]} (18. Qxc4 $18 {And now Qa4 would win.} Kd8 19. Qxc8+ Nxc8 20. Rb8) 18... Nc6 $14 {[%emt 0:01:29]} 19. Qe3 {[%emt 0:01:19]} (19. Qd3 $1 $14) 19... Be7 $11 {[%emt 0:07:46]} 20. Ba6 {[%emt 0:02:07]} Qa8 {[%emt 0:03:05]} 21. Bb5 {[%emt 0:00:46] aiming for Ra6.} O-O {[%emt 0:03:40]} 22. Nb6 $132 {[%emt 0:04:33][%mdl 2048] White is not holding back} Qb7 {[%emt 0:02:20]} 23. Nxd7 {[%emt 0:00:33]} Qxd7 {[%emt 0:01:17]} 24. f4 {[%emt 0:04:37] Hoping for f5.} Qc7 {[%emt 0:00:54][%cal Oc6e5]} 25. Kh1 {[%emt 0:00:49]} a5 {[%emt 0:05:09]} 26. Bxc6 {[%emt 0:08:49]} Qxc6 {[%emt 0:00:03]} 27. Rxa5 {[%emt 0:00:09]} (27. f5 $5 {[%cal Rf5e6]} Bd7 28. Rxa5 $11) 27... g6 {[%emt 0:00:43]} 28. Rf1 {[%emt 0:02:38]} Qc4 {[%emt 0:01:35]} 29. Raa1 {[%emt 0:01:55] Threatens to win with f5.} Rc8 {[%emt 0:01:03]} 30. f5 {[%emt 0:01:12]} Bd7 {[%emt 0:02:05]} 31. e6 {[%emt 0:01:56]} fxe6 {[%emt 0:02:37]} 32. f6 {[%emt 0:01:36]} Bf8 {[%emt 0:01:48]} 33. f7+ {[%emt 0:00:58] [#]} (33. Qg5 $11 Be8 34. h3) 33... Kh8 {[%emt 0:00:26]} ({Black should play} 33... Kg7 $1 $17) 34. Qf4 {[%emt 0:00:09]} (34. Rfd1 $11 {remains equal.} Bc6 35. Qg5) 34... Bg7 $2 {[%emt 0:02:01][%mdl 8192] Black cannot hold the game after this.} (34... h6 $17) 35. Qd6 $18 {[%emt 0:00:34]} Rf8 {[%emt 0:03:36]} 36. Qxd7 {[%emt 0:00:14]} Qxc3 {[%emt 0:00:49]} (36... Bxc3 $142 37. Rac1 Qa6) 37. Qxe6 {[%emt 0:02:17]} Qxa1 {[%emt 0:00:30]} 38. Rxa1 {[%emt 0:00:02] White mates.} Bxa1 {[%emt 0:00:02] KQ-KRB} 39. e5 {[%emt 0:00:12][%cal Re6f6]} Kg7 {[%emt 0:00:24]} 40. Qf6+ {[%emt 0:00:15]} Kh6 {[%emt 0:00:06]} 41. g4 {[%emt 0:00:55]} Bxe5 {[%emt 0:00:28]} 42. Qxe5 {[%emt 0:00:22]} Rxf7 {[%emt 0:00:10]} 43. h4 {[%emt 0:00:06]} Rd7 {[%emt 0:01:35]} 44. Kg2 {[%emt 0:00:52]} Rb7 {[%emt 0:00:46]} 45. Qf6 {[%emt 0:00:53] Weighted Error Value: White=0.21 (precise) /Black=0.42} 1-0

[Event "1000IM Saint Louis 2022"]
[Site "Saint Louis"]
[Date "2022.07.19"]
[Round "1.2"]
[White "Sethuraman, Sandeep"]
[Black "Wang, Tianqi"]
[Result "1/2-1/2"]
[ECO "D15"]
[WhiteElo "2305"]
[BlackElo "2402"]
[Annotator "TA"]
[PlyCount "54"]
[EventDate "2022.07.20"]
[EventType "tourn"]
[EventCountry "USA"]
[SourceTitle "playchess.com"]
[Source "ChessBase"]
[SourceQuality "1"]
[TimeControl "5400+30"]

{[%evp 10,54,32,45,39,25,25,25,28,27,26,29,31,26,33,16,24,15,16,20,30,9,10,10,11,6,12,14,12,12,12,12,20,16,17,17,8,8,8,9,9,18,33,0,0,0,0]} 1. d4 {[%emt 0:00:01]} d5 {[%emt 0:00:08]} 2. c4 {[%emt 0:00:05]} c6 {[%emt 0:00:04]} 3. Nc3 {[%emt 0:00:08]} Nf6 {[%emt 0:00:06]} 4. Nf3 {[%emt 0:02:55]} a6 {[%emt 0:00:10]} 5. c5 {[%emt 0:00:45]} Bf5 {[%emt 0:00:20]} 6. Qb3 {[%emt 0:00:49]} Ra7 {[%emt 0:00:20] seems to push 6...Qc8 aside. D15: Slav Defence: 4 Nc3 a6 and gambit lines after 4 Nc3 dxc4.} 7. Bf4 {[%emt 0:01:28]} Nbd7 {[%emt 0:01:04]} 8. h3 {[%emt 0:04:05]} e6 {[%emt 0:02:36] White has an edge.} 9. e3 {[%emt 0:00:34]} h6 {[%emt 0:00:28]} 10. Be2 {[%emt 0:00:20]} Be7 {[%emt 0:00:07]} 11. O-O {[%emt 0:01:13]} O-O {[%emt 0:00:26]} 12. Na4 {[%emt 0:11:06]} Re8 {[%emt 0:01:04] [#]} 13. Rfc1 $146 {[%emt 0:04:19]} ({Predecessor:} 13. Rac1 a5 14. a3 Be4 15. Rfe1 Bxf3 16. Bxf3 Bf8 17. Qc3 Be7 18. Bg3 Qc8 19. e4 dxe4 20. Bxe4 Nxe4 21. Rxe4 {½-½ (43) Corti,H (2295)-Nichols,S (2374) LSS email 2020}) 13... Qc8 {[%emt 0:02:56]} 14. Nb6 {[%emt 0:06:22]} Qd8 {[%emt 0:04:34]} 15. a4 {[%emt 0:13:28]} a5 {[%emt 0:00:22]} 16. Ne5 {[%emt 0:05:55]} Nxe5 {[%emt 0:22:45]} 17. Bxe5 {[%emt 0:00:08]} Nd7 {[%emt 0:01:11]} 18. Nxd7 {[%emt 0:02:05]} Qxd7 {[%emt 0:01:48]} 19. Bd3 {[%emt 0:04:17]} Bxd3 {[%emt 0:01:21]} 20. Qxd3 {[%emt 0:00:02]} Bd8 {[%emt 0:00:02]} 21. Rab1 {[%emt 0:05:32]} Bc7 {[%emt 0:01:33]} 22. Bxc7 {[%emt 0:04:13]} Qxc7 {[%emt 0:00:13]} 23. b4 {[%emt 0:00:56]} axb4 {[%emt 0:00:29]} 24. Rxb4 {[%emt 0:00:02]} e5 {[%emt 0:11:09]} 25. Rcb1 {[%emt 0:10:57]} exd4 26. exd4 {[%emt 0:00:27]} Re7 {[%emt 0:00:00]} 27. Qf5 {[%emt 0:03:54]} g6 {[%emt 0:02:29] Weighted Error Value: White=0.05 (flawless) /Black=0.02 (flawless)} 1/2-1/2

[Event "1000IM Saint Louis 2022"]
[Site "Saint Louis"]
[Date "2022.07.19"]
[Round "1.3"]
[White "Proleiko, Julian"]
[Black "Kozelov, Roman"]
[Result "1-0"]
[ECO "C02"]
[WhiteElo "2238"]
[BlackElo "2104"]
[Annotator "TA"]
[PlyCount "41"]
[EventDate "2022.07.20"]
[EventType "tourn"]
[EventCountry "USA"]
[SourceTitle "playchess.com"]
[Source "ChessBase"]
[SourceQuality "1"]
[TimeControl "5400+30"]

{[%evp 10,41,31,31,38,31,25,19,25,17,17,17,18,10,12,10,49,64,52,32,159,161,231,219,210,183,209,199,201,181,229,232,316,320]} 1. e4 {[%emt 0:00:03]} e6 {[%emt 0:00:04]} 2. d4 {[%emt 0:00:06]} d5 {[%emt 0:00:03]} 3. e5 {[%emt 0:00:05]} b6 {[%emt 0:00:07]} 4. Nf3 {[%emt 0:00:07]} Qd7 {[%emt 0:00:02]} 5. a4 {[%emt 0:00:07]} a5 {[%emt 0:00:04]} 6. c3 {[%emt 0:00:11]} Ba6 {[%emt 0:01:29] C02: French: Advance Variation.} 7. Bxa6 {[%emt 0:00:06]} Nxa6 {[%emt 0:00:04]} 8. O-O {[%emt 0:00:09]} c5 {[%emt 0:00:36] The position is equal.} 9. Qe2 {[%emt 0:00:24]} Ne7 {[%emt 0:03:34] [#]} 10. Na3 $146 {[%emt 0:00:11]} ({Predecessor:} 10. b3 Nc6 11. Be3 Be7 12. Rd1 Qb7 13. Na3 h6 14. Nb5 O-O 15. Rac1 Rfd8 16. h4 {1-0 (59) Panas,P (2187)-Bugalski,M (2244) Lublin 2006}) 10... Nc6 {[%emt 0:00:46]} 11. Nb5 {[%emt 0:00:10]} Nc7 {[%emt 0:08:52]} 12. Be3 {[%emt 0:03:30]} c4 {[%emt 0:01:27]} 13. Nxc7+ {[%emt 0:08:16]} Qxc7 {[%emt 0:00:17]} 14. b3 {[%emt 0:01:32]} Be7 {[%emt 0:03:16]} ({Black should play} 14... cxb3 $14 15. Rfb1 Be7) 15. bxc4 $16 {[%emt 0:00:41]} O-O {[%emt 0:00:14]} (15... dxc4 $142 16. Qxc4 O-O) 16. cxd5 $18 exd5 {[%emt 0:00:04]} 17. Rfc1 {[%emt 0:03:49]} Qb7 {[%emt 0:02:14]} 18. Rab1 {[%emt 0:01:44]} Rab8 {[%emt 0:00:50]} 19. Bg5 {[%emt 0:06:28]} Ba3 {[%emt 0:03:14]} (19... Qd7 $142 20. Bd2 h6) 20. Re1 {[%emt 0:00:39]} Rfe8 {[%emt 0:00:32]} 21. Qa2 {[%emt 0:03:03][%csl LRa3,LRd5] Weighted Error Value: White=0.06 (flawless) /Black=0.36} 1-0

[Event "1000IM Saint Louis 2022"]
[Site "Saint Louis"]
[Date "2022.07.19"]
[Round "1.4"]
[White "Williams, Justus"]
[Black "Nyzhnyk, Illya"]
[Result "0-1"]
[ECO "D47"]
[WhiteElo "2390"]
[BlackElo "2686"]
[Annotator "TA"]
[PlyCount "68"]
[EventDate "2022.07.20"]
[EventType "tourn"]
[EventCountry "USA"]
[SourceTitle "playchess.com"]
[Source "ChessBase"]
[SourceQuality "1"]
[TimeControl "5400+30"]

{[%evp 19,68,-43,-13,-13,0,-24,-8,-38,-57,-61,-44,-85,-87,-84,-86,-96,-93,-97,-92,-95,-90,-113,-102,-108,-82,-86,-47,-156,-167,-175,-183,-178,-152,-187,-151,-241,-251,-357,-377,-451,-423,-584,-608,-608,-605,-594,-582,-566,-573,-783,-566]} 1. Nf3 {[%emt 0:00:38]} d5 {[%emt 0:00:09]} 2. d4 {[%emt 0:00:42]} Nf6 {[%emt 0:00:10]} 3. c4 {[%emt 0:00:25]} e6 {[%emt 0:00:43]} 4. Nc3 {[%emt 0:00:58]} dxc4 {[%emt 0:00:04]} 5. e3 {[%emt 0:00:29]} a6 {[%emt 0:00:40]} 6. Bxc4 {[%emt 0:01:35]} b5 {[%emt 0:00:03]} 7. Be2 {[%emt 0:01:15]} Bb7 {[%emt 0:00:14]} 8. a4 {[%emt 0:03:33]} b4 {[%emt 0:00:39]} 9. Nb1 {[%emt 0:00:31]} c5 {[%emt 0:01:11]} 10. O-O {[%emt 0:01:37]} Nbd7 {[%emt 0:00:29]} 11. Nbd2 {[%emt 0:00:57] D47: Semi-Slav: Meran System.} Qc7 $5 {[%emt 0:08:07][%mdl 4] Leaves trodden paths.} 12. Nc4 {[%emt 0:04:10]} Be7 {[%emt 0:01:28]} 13. h3 {[%emt 0:01:56] The position is equal.} O-O {[%emt 0:00:12] [#]} 14. Bd2 $146 {[%emt 0:01:10]} ({Predecessor:} 14. b3 cxd4 15. Nxd4 Rfd8 16. Bf3 Nb6 17. Bxb7 Qxb7 18. Na5 Qc7 19. Nac6 Rd5 20. Nxe7+ Qxe7 {1-0 (60) Smirnova,E (2107)-Morea,G (1902) Budva 2013}) 14... Rfd8 {[%emt 0:04:49]} 15. Qb1 {[%emt 0:07:56]} Be4 {[%emt 0:04:48]} 16. Qa2 {[%emt 0:01:35]} a5 {[%emt 0:00:03]} 17. Rfc1 {[%emt 0:04:52]} Qb7 {[%emt 0:00:59]} 18. Qb3 {[%emt 0:04:10]} Bd5 {[%emt 0:03:40]} 19. Qd1 {[%emt 0:01:56]} Ne4 {[%emt 0:00:31]} 20. Be1 {[%emt 0:01:02]} cxd4 {[%emt 0:10:43] Black is more active.} 21. Nxd4 {[%emt 0:08:12]} e5 {[%emt 0:00:07]} 22. Nf5 {[%emt 0:06:18]} Ndc5 {[%emt 0:10:32][%cal Bd7c5,Bc5e4,Be4g3,Bg3e2,Be2c1][%mdl 32] ...Bxc4 is the strong threat.} 23. Nxe7+ {[%emt 0:05:46]} (23. Nxa5 $1 $15 Rxa5 24. Bxb4) 23... Qxe7 $17 {[%emt 0:00:05]} 24. Qc2 {[%emt 0:00:48]} b3 {[%emt 0:00:21]} 25. Qb1 {[%emt 0:00:09] [#]} Ng3 $1 $36 {[%emt 0:00:43][%mdl 2560] Black is in control.} 26. fxg3 {[%emt 0:03:37] Threatens to win with Qf5.} Be4 {[%emt 0:00:03] Inhibits Qf5.} 27. Qxe4 {[%emt 0:00:37]} (27. Bxa5 $17 Rxa5 28. Nxa5 Bxb1 29. Raxb1) 27... Nxe4 $19 {[%emt 0:00:04]} 28. Nxa5 {[%emt 0:00:07]} (28. Kh2 $142) 28... Qg5 {[%emt 0:01:38][%csl LRe3,LRg3]} 29. Bf3 {[%emt 0:01:53] [#]} Nxg3 $1 {[%emt 0:01:12] Black is clearly winning.} 30. h4 {[%emt 0:01:54]} (30. Bxg3 Rxa5) 30... Qxe3+ {[%emt 0:00:22]} 31. Bf2 {[%emt 0:00:09]} Ne2+ {[%emt 0:00:08]} 32. Kf1 {[%emt 0:00:31]} Qxc1+ {[%emt 0:00:04]} 33. Rxc1 {[%emt 0:00:06]} Nxc1 {[%emt 0:00:02]} 34. Nc6 {[%emt 0:01:57]} e4 {[%emt 0:00:05] Weighted Error Value: White=0.42/Black=0.06 (flawless)} 0-1

[Event "1000IM Saint Louis 2022"]
[Site "Saint Louis"]
[Date "2022.07.19"]
[Round "1.5"]
[White "Stefanov, Emil"]
[Black "Altman, Joshua"]
[Result "1-0"]
[ECO "C06"]
[WhiteElo "2342"]
[BlackElo "2162"]
[Annotator "TA"]
[PlyCount "87"]
[EventDate "2022.07.20"]
[EventType "tourn"]
[EventCountry "USA"]
[SourceTitle "playchess.com"]
[Source "ChessBase"]
[SourceQuality "1"]
[TimeControl "5400+30"]

{[%evp 27,87,52,53,50,58,48,65,54,81,73,72,79,108,108,108,108,108,112,117,115,113,116,130,129,152,150,158,125,142,111,122,93,99,69,67,65,70,62,87,97,102,101,94,38,118,88,135,131,115,135,274,276,284,136,632,585,12837,5302,6170,5310,29991,29992]} 1. e4 {[%emt 0:00:06]} e6 {[%emt 0:00:04]} 2. d4 {[%emt 0:00:10]} d5 {[%emt 0:00:03]} 3. Nd2 {[%emt 0:00:14]} Nf6 {[%emt 0:00:09]} 4. e5 {[%emt 0:00:12]} Nfd7 {[%emt 0:00:03]} 5. Bd3 {[%emt 0:00:15]} c5 {[%emt 0:00:03]} 6. c3 {[%emt 0:00:11]} Nc6 {[%emt 0:00:03]} 7. Ne2 {[%emt 0:00:15]} Qb6 {[%emt 0:00:04]} 8. Nf3 {[%emt 0:01:29]} cxd4 {[%emt 0:00:03]} 9. cxd4 {[%emt 0:00:10]} f6 {[%emt 0:00:02]} 10. exf6 {[%emt 0:00:13]} Nxf6 {[%emt 0:00:02]} 11. O-O {[%emt 0:00:16]} Bd6 {[%emt 0:00:02]} 12. Bf4 {[%emt 0:01:37]} Bxf4 {[%emt 0:00:04]} 13. Nxf4 {[%emt 0:00:08]} Qxb2 {[%emt 0:00:13]} 14. Re1 {[%emt 0:00:40]} O-O {[%emt 0:00:03]} 15. g3 {[%emt 0:00:14][%mdl 1024] White has compensation. C06: French Tarrasch: 3...Nf6 4 e5 Nfd7 5 Bd3 main lines.} Qb4 {[%emt 0:19:21]} (15... Ng4 $2 16. Bxh7+ $1 {[%mdl 512]} Kxh7 17. Ng5+ Kg8 18. Qxg4 $18) 16. Rb1 {[%emt 0:05:44]} Qd6 {[%emt 0:00:57] [#]} 17. Rb2 $146 {[%emt 0:06:56] White is slightly better.} ({Predecessor:} 17. Ng5 Nxd4 18. Bxh7+ Nxh7 19. Nxh7 Kxh7 20. Qxd4 Rf5 21. Nd3 b6 22. Qh4+ Kg8 23. g4 {0-1 (58) Gabriel,U-Holze,G Germany 1991}) 17... Rb8 {[%emt 0:10:36]} 18. Qb1 {[%emt 0:13:17] And now Ng5 would win.} h6 {[%emt 0:03:42] Inhibits Ng5.} 19. Ng6 {[%emt 0:03:55]} Re8 {[%emt 0:02:01]} 20. Nge5 {[%emt 0:00:18] aiming for Nxc6.} Bd7 {[%emt 0:08:37] [#]} 21. Bg6 $1 {[%emt 0:09:53]} ({Worse is} 21. Rxb7 Rxb7 22. Qxb7 Rb8 $15) 21... Rf8 {[%emt 0:04:50]} 22. Rxb7 {[%emt 0:02:29]} Rxb7 {[%emt 0:17:59]} 23. Qxb7 {[%emt 0:00:33]} Rb8 {[%emt 0:14:34]} 24. Qa6 {[%emt 0:03:50] 0x0.001449d77c90dp-1022s more active pieces.} Rb6 {[%emt 0:04:53]} 25. Qd3 {[%emt 0:06:10]} Nd8 {[%emt 0:06:55] Inhibits Bf7+.} 26. Rc1 {[%emt 0:06:21]} Rb8 {[%emt 0:01:02]} 27. Nd2 {[%emt 0:03:18]} Rb2 {[%emt 0:02:26]} 28. a3 {[%emt 0:08:36]} Rb8 {[%emt 0:03:07]} 29. Qc3 {[%emt 0:05:18]} Be8 {[%emt 0:02:15]} 30. Bd3 {[%emt 0:03:56]} Nf7 {[%emt 0:00:43]} 31. Kg2 {[%emt 0:05:13]} Nd7 {[%emt 0:00:25][%cal Rd7e5]} 32. Nc6 {[%emt 0:03:05]} Rb7 {[%emt 0:00:13]} 33. Bg6 {[%emt 0:01:11]} Nf8 {[%emt 0:00:48]} 34. Bxf7+ {[%emt 0:00:06]} Bxf7 {[%emt 0:00:31]} 35. Qc5 {[%emt 0:03:55]} (35. Ne5 $16) 35... Qd7 {[%emt 0:00:34]} ({Black should play} 35... Qxc5 $14 36. dxc5 Be8) 36. Nf3 $36 {[%emt 0:00:46][%mdl 2048] Keeping Black busy.} Ng6 {[%emt 0:00:25]} (36... Bg6 $142) 37. Nce5 $16 {[%emt 0:01:36]} Nxe5 {[%emt 0:00:10]} 38. Nxe5 {[%emt 0:00:04]} ({Don't play} 38. dxe5 $6 Kh7 $14) 38... Qe7 {[%emt 0:00:13]} (38... Qe8 $16 {might work better.} 39. Qc2 Qd8) 39. Qc8+ $18 {[%emt 0:00:36]} Kh7 {[%emt 0:00:24] [#]} 40. Rc6 {[%emt 0:01:43]} (40. Qa8 $1 $18 {Strongly threatening Rc8.} Rc7 41. Rb1) 40... Rb2 $2 {[%emt 0:01:11][%mdl 8192] Black cannot hold the game after this.} (40... a5 $16 41. a4 Qb4) 41. Rc7 {[%emt 0:01:35][%cal Bc6c7,Bc7f7,Bf7f2][%mdl 32]} Qf6 {[%emt 0:00:32]} 42. Rxf7 {[%emt 0:00:10]} Rxf2+ {[%emt 0:00:06]} 43. Kh3 {[%emt 0:00:16]} Qg5 {[%emt 0:00:54]} 44. Rxf2 {[%emt 0:00:09] Weighted Error Value: White=0.15 (very precise) /Black=0.62} 1-0